[Event "US Masters 2024"]
[Site "Charlotte"]
[Date "2024.11.28"]
[Round "2.12"]
[White "Kevlishvili, Robby"]
[Black "Yedidia, Jonathan"]
[Result "1-0"]
[ECO "C41"]
[WhiteElo "2556"]
[BlackElo "2345"]
[Annotator "TA"]
[PlyCount "88"]
[EventDate "2024.09.23"]
[EventType "swiss"]
[EventCountry "USA"]
[SourceTitle "playchess.com"]
[Source "ChessBase"]
[SourceQuality "1"]
[TimeControl "5400+30"]

{[%evp 17,88,47,42,44,47,26,52,45,51,51,64,62,62,59,58,68,59,59,93,95,174,114,128,95,100,79,94,107,87,110,112,107,106,114,107,87,86,100,89,100,156,167,164,156,167,164,245,257,227,245,264,269,239,263,234,236,239,263,314,331,376,231,353,294,462,507,514,475,505,514,477,406,563]} 1. e4 {[%emt 0:03:14]} d6 {[%emt 0:00:05]} 2. d4 {[%emt 0:00:22]} Nf6 {[%emt 0:00:05]} 3. Nc3 {[%emt 0:00:21]} e5 {[%emt 0:00:04]} 4. Nf3 {[%emt 0:00:38]} Nbd7 {[%emt 0:00:05]} 5. Bc4 {[%emt 0:00:06]} Be7 {[%emt 0:00:08]} 6. a4 {[%emt 0:00:06]} O-O {[%emt 0:00:14]} 7. O-O {[%emt 0:00:08]} c6 {[%emt 0:00:04]} 8. Re1 {[%emt 0:00:06]} h6 {[%emt 0:00:22]} 9. h3 {[%emt 0:00:31]} Re8 {[%emt 0:00:06]} 10. a5 {[%emt 0:00:41]} Qc7 {[%emt 0:00:20]} 11. Bf1 {[%emt 0:00:13]} Rb8 {[%emt 0:02:14]} 12. d5 {[%emt 0:00:41] White is slightly better.} a6 {[%emt 0:13:01]} 13. Nd2 {[%emt 0:01:14]} cxd5 {[%emt 0:11:04]} 14. exd5 {[%emt 0:06:02]} b5 {[%emt 0:09:05]} 15. axb6 {[%emt 0:00:35]} Nxb6 {[%emt 0:00:12]} 16. Nde4 {[%emt 0:04:08]} (16. Bxa6 Ra8 17. Bxc8 (17. Nb5 $2 Qb8 $19) 17... Rxa1 $17) 16... Nxe4 {[%emt 0:04:22]} 17. Rxe4 {[%emt 0:01:01]} f5 {[%emt 0:09:30]} 18. Rb4 {[%emt 0:00:22]} Ra8 {[%emt 0:06:33]} (18... Rf8 $16 {was worth a try.}) 19. Be3 {[%emt 0:04:01]} (19. Bxh6 $18 {Strongly threatening Qh5.} Nd7 (19... gxh6 $2 20. Qh5 $18) 20. Bd2) 19... Nd7 $16 {[%emt 0:00:20]} 20. Rc4 {[%emt 0:02:55]} Qb7 {[%emt 0:08:52][%cal Od7f6]} 21. Ra3 {[%emt 0:02:23] [#] And now Rb3 would win.} Nf6 {[%emt 0:01:21][%cal Of5f4]} 22. Rb3 {[%emt 0:03:17]} Qd7 {[%emt 0:00:07]} 23. Na4 {[%emt 0:00:08] Nb6 is the strong threat. White has more active pieces.} Bd8 {[%emt 0:07:07]} 24. Nb6 $36 {[%emt 0:03:45][%mdl 2048] White is in control.} Bxb6 {[%emt 0:00:06]} 25. Bxb6 {[%emt 0:00:04]} (25. Rxb6 $6 f4 26. Bc1 Bb7 $11) 25... Qf7 {[%emt 0:01:30]} 26. Rc7 {[%emt 0:03:03]} Re7 {[%emt 0:02:03]} 27. Rxe7 {[%emt 0:09:55]} Qxe7 {[%emt 0:00:03]} 28. Ba5 {[%emt 0:00:25]} e4 {[%emt 0:06:16]} (28... f4 $142) 29. Qd4 {[%emt 0:01:32]} Nd7 {[%emt 0:04:30]} 30. c4 {[%emt 0:10:11]} Kh7 {[%emt 0:03:42]} 31. Bc3 {[%emt 0:01:11]} a5 {[%emt 0:02:23]} (31... Qg5 $142 32. Bd2 Qd8) 32. Ra3 $18 {[%emt 0:01:12]} a4 {[%emt 0:00:20]} 33. b4 {[%emt 0:01:47][%cal Bb2b4,Bb4c5][%mdl 32]} Bb7 {[%emt 0:03:11][%cal Bc8b7,Bb7c6,Bc6b5,Bb5a6][%mdl 32] [#]} 34. c5 $1 {[%emt 0:01:45][%mdl 512]} dxc5 {[%emt 0:04:37]} 35. bxc5 {[%emt 0:00:48][%cal Oc5c6] aiming for c6!} Nf6 {[%emt 0:00:11]} 36. d6 {[%emt 0:03:57]} (36. Rxa4 Nxd5 37. Rxa8 Bxa8 $16) 36... Qd7 {[%emt 0:00:04] Black is weak on the dark squares} 37. Bc4 {[%emt 0:05:57]} Bc6 {[%emt 0:00:14]} 38. Qd1 {[%emt 0:00:57]} Rf8 {[%emt 0:01:56][%cal Ba8f8,Bf8f6,Bf6g6][%mdl 32]} 39. Be5 {[%emt 0:03:56] Hoping for Bxf6. A strong pair of Bishops.} Qe8 {[%emt 0:01:57]} (39... f4 {was called for.} 40. Bxf4 Qf5) 40. Qd4 {[%emt 0:00:50]} Qd7 {[%emt 0:00:18]} (40... Qd8 {keeps fighting.} 41. Kh2 (41. Be6 Qe8 $18) 41... Re8) 41. Bxf6 {[%emt 0:03:18]} Rxf6 {[%emt 0:00:03]} 42. Bd5 {[%emt 0:00:08]} Bb5 {[%emt 0:01:22]} 43. Rc3 {[%emt 0:00:40]} Ba6 {[%emt 0:01:16]} 44. Qb4 {[%emt 0:03:04]} ({But not} 44. f3 exf3 45. Rxf3 (45. Bxf3 Bb5 $18) 45... Bb5) 44... Rg6 {[%emt 0:01:07] Weighted Error Value: White=0.16 (very precise) /Black=0.25 (precise) .  Mistake:       	White=1     	Black=5      Inaccurate:     	White=1     	Black=3      OK:         	White=18    	Black=12     Best:        	White=1     	Black=2} 1-0

[Event "US Masters 2024"]
[Site "Charlotte"]
[Date "2024.11.28"]
[Round "2.13"]
[White "Sargsyan, Anna M."]
[Black "Stremavicius, Titas"]
[Result "1/2-1/2"]
[ECO "B13"]
[WhiteElo "2361"]
[BlackElo "2545"]
[Annotator "TA"]
[PlyCount "141"]
[EventDate "2024.09.23"]
[EventType "swiss"]
[EventCountry "USA"]
[SourceTitle "playchess.com"]
[Source "ChessBase"]
[SourceQuality "1"]
[TimeControl "5400+30"]

{[%evp 47,141,0,5,-4,0,5,18,15,13,0,0,0,0,0,0,-33,-34,-48,-14,-8,-16,-12,-16,-47,-39,-38,-48,-53,-43,-40,0,0,0,0,0,0,0,0,0,0,0,0,0,0,0,0,0,0,0,0,0,0,0,0,0,0,0,0,0,0,0,0,0,0,0,0,0,0,0,0,0,0,0,0,0,0,0,0,0,0,0,0,0,0,0,0,0,0,0,0,0,0,0,0,0,0]} 1. e4 {[%emt 0:10:06]} c6 {[%emt 0:00:03]} 2. d4 {[%emt 0:00:06]} d5 {[%emt 0:00:04]} 3. exd5 {[%emt 0:00:09]} cxd5 {[%emt 0:00:05]} 4. Bd3 {[%emt 0:00:07]} Nf6 {[%emt 0:00:08]} 5. h3 {[%emt 0:00:12]} Nc6 {[%emt 0:00:21]} 6. c3 {[%emt 0:00:05]} e5 {[%emt 0:04:31]} 7. dxe5 {[%emt 0:01:27]} Nxe5 {[%emt 0:00:04]} 8. Bb5+ {[%emt 0:00:40]} Bd7 {[%emt 0:00:09] B13: Caro-Kann: Exchange Variation and Panov-Botvinnik Attack.} 9. Bxd7+ {[%emt 0:00:18]} Qxd7 {[%emt 0:04:31]} 10. Nf3 {[%emt 0:00:33]} Nc6 {[%emt 0:01:41]} 11. O-O {[%emt 0:00:06]} Be7 {[%emt 0:00:06]} 12. Nbd2 $146 {[%emt 0:04:11]} ({Predecessor:} 12. Bf4 O-O 13. Nbd2 d4 14. cxd4 Nxd4 15. Be5 Nc6 16. Bxf6 Bxf6 17. Ne4 Qf5 18. Nxf6+ Qxf6 {1-0 Seo,J (2409)-Jafarzadeh,M (2089) Lund CellaVision Cup 2019 (2)}) 12... O-O {[%emt 0:13:51]} 13. Nb3 {[%emt 0:00:58]} Ne4 {[%emt 0:00:19]} 14. Qd3 {[%emt 0:01:33]} Bd6 {[%emt 0:06:48]} 15. Be3 {[%emt 0:00:54]} Rfe8 {[%emt 0:01:36]} 16. Rad1 {[%emt 0:03:42]} Rad8 {[%emt 0:00:09]} 17. Nbd4 {[%emt 0:01:50]} Bb8 {[%emt 0:01:21]} 18. Rfe1 {[%emt 0:05:56]} h6 {[%emt 0:02:29]} 19. c4 {[%emt 0:08:28]} Nb4 {[%emt 0:08:42]} 20. Qb3 {[%emt 0:02:39]} Na6 {[%emt 0:00:40]} 21. cxd5 {[%emt 0:05:00]} Qxd5 {[%emt 0:15:14]} 22. Qxd5 {[%emt 0:00:07]} Rxd5 {[%emt 0:00:08]} 23. Nb3 {[%emt 0:00:13]} Nf6 {[%emt 0:01:45]} 24. Bd4 {[%emt 0:04:26]} Red8 {[%emt 0:01:38]} 25. Re7 {[%emt 0:05:42]} b6 {[%emt 0:04:44]} 26. Rde1 {[%emt 0:00:38]} Nb4 {[%emt 0:02:51]} 27. Bxf6 {[%emt 0:00:20]} gxf6 {[%emt 0:00:03]} 28. a3 {[%emt 0:05:17]} Nc6 {[%emt 0:04:49]} 29. Re8+ {[%emt 0:03:01]} Rxe8 {[%emt 0:00:33]} 30. Rxe8+ {[%emt 0:00:02]} Kg7 {[%emt 0:00:59]} 31. g4 {[%emt 0:13:17]} Be5 {[%emt 0:02:02]} 32. Rc8 $1 {[%emt 0:03:36]} Rd3 {[%emt 0:01:13]} 33. Nbd2 {[%emt 0:02:19]} Nd4 {[%emt 0:04:33]} 34. Kg2 {[%emt 0:03:15]} Ne6 {[%emt 0:01:08]} 35. Rc2 {[%emt 0:00:59]} Nf4+ {[%emt 0:00:32]} 36. Kh2 {[%emt 0:00:16]} Bd6 {[%emt 0:03:24]} 37. h4 {[%emt 0:00:06]} Kg6 {[%emt 0:00:18]} 38. Kg1 {[%emt 0:00:54]} f5 {[%emt 0:05:04]} 39. Rc6 {[%emt 0:02:29]} Ne6 {[%emt 0:00:03]} (39... fxg4 $2 {is the wrong capture.} 40. Ne5+ Kg7 41. Nxd3 Nxd3 42. Rxd6 $18) 40. Nc4 $1 {[%emt 0:01:53]} Rd1+ {[%emt 0:06:52]} 41. Kg2 {[%emt 0:00:02]} Bf4 {[%emt 0:00:04]} 42. Nfe5+ {[%emt 0:01:49]} Kf6 {[%emt 0:00:24]} 43. gxf5 {[%emt 0:00:32]} Bxe5 {[%emt 0:00:04]} 44. fxe6 {[%emt 0:12:17]} fxe6 {[%emt 0:00:06]} 45. Nxe5 {[%emt 0:00:00]} Kxe5 {[%emt 0:00:09]} 46. Rc7 {[%emt 0:00:00]} a5 {[%emt 0:00:30]} 47. Rh7 {[%emt 0:01:30]} Rb1 {[%emt 0:00:22]} 48. Rxh6 {[%emt 0:00:00]} Rxb2 {[%emt 0:00:07]} 49. Rh8 {[%emt 0:00:00]} Rb3 {[%emt 0:01:23]} 50. h5 {[%emt 0:00:00]} Kf6 {[%emt 0:00:37]} 51. h6 {[%emt 0:00:00]} Kg6 {[%emt 0:00:20]} 52. h7 {[%emt 0:00:00]} e5 {[%emt 0:00:49]} 53. a4 {[%emt 0:00:00]} Rb4 {[%emt 0:00:38]} 54. Kg3 {[%emt 0:00:00]} Kg7 {[%emt 0:00:17]} 55. Re8 $1 {[%emt 0:00:00]} Kxh7 {[%emt 0:00:03]} 56. Rxe5 {[%emt 0:00:00]} Rxa4 {[%emt 0:00:07]} 57. Re7+ {[%emt 0:00:00]} Kg8 {[%emt 0:00:07]} (57... Kg6 $5) 58. f4 {[%emt 0:00:00]} Rb4 {[%emt 0:01:25]} 59. Kg4 {[%emt 0:00:00]} a4 {[%emt 0:00:12]} 60. Ra7 {[%emt 0:00:00]} Kf8 {[%emt 0:00:35]} 61. Kg5 {[%emt 0:00:31]} Rb5+ {[%emt 0:00:57]} 62. Kf6 $1 {[%emt 0:00:06]} Ra5 {[%emt 0:00:04]} 63. Rb7 {[%emt 0:00:58]} Ra8 $1 {[%emt 0:03:55]} 64. Rxb6 {[%emt 0:00:16]} (64. Rh7 $5 Kg8 $8 65. Rg7+ Kh8 66. Rg1 $15) 64... a3 {[%emt 0:00:06]} 65. Rb1 {[%emt 0:00:02]} a2 {[%emt 0:00:22]} 66. Ra1 {[%emt 0:00:03]} Ra5 {[%emt 0:00:18]} 67. f5 {[%emt 0:00:06]} Ke8 {[%emt 0:00:09]} 68. Ke6 {[%emt 0:00:05]} Kd8 {[%emt 0:00:37]} 69. Kf6 $1 {[%emt 0:00:29]} Kd7 {[%emt 0:01:01]} 70. Kg7 {[%emt 0:00:29]} Rxf5 {[%emt 0:00:22]} 71. Rxa2 {[%emt 0:00:03]} 1/2-1/2

[Event "US Masters 2024"]
[Site "Charlotte"]
[Date "2024.11.28"]
[Round "2.14"]
[White "Brodsky, David"]
[Black "Sheehan, Ethan"]
[Result "0-1"]
[ECO "C72"]
[WhiteElo "2538"]
[BlackElo "2331"]
[Annotator "TA"]
[PlyCount "132"]
[EventDate "2024.09.23"]
[EventType "swiss"]
[EventCountry "USA"]
[SourceTitle "playchess.com"]
[Source "ChessBase"]
[SourceQuality "1"]
[TimeControl "5400+30"]

{[%evp 10,132,54,16,27,32,54,72,79,0,0,0,0,0,-14,0,0,0,0,0,0,-16,0,0,0,0,0,0,0,-77,0,0,21,0,0,-18,-21,-13,-9,-157,-150,-154,-136,-162,-145,-253,-252,-239,-248,-256,-258,-255,-253,-251,-253,-243,-252,-245,-218,-261,-229,-281,-252,-287,-304,-372,-360,-349,-359,-487,-329,-290,-266,-281,-283,-260,-256,-248,-247,-242,-219,-366,-356,-368,-366,-363,-365,-391,-386,-387,-386,-383,-383,-404,-322,-316,-311,-425,-421,-607,-582,-681,-568,-729,-602,-712,-694,-910,-900,-936,-960,-1943,-2329,-2410,-2106,-2931,-3378,-1935,-1860,-29957,-29957,-29959,-29953,-6691,-5907]} 1. e4 {[%emt 0:09:46]} e5 {[%emt 0:00:04]} 2. Nf3 {[%emt 0:00:02]} Nc6 {[%emt 0:00:06]} 3. Bb5 {[%emt 0:00:04]} a6 {[%emt 0:00:04]} 4. Ba4 {[%emt 0:00:03]} d6 {[%emt 0:00:05]} 5. O-O {[%emt 0:00:05]} Bd7 {[%emt 0:00:02]} 6. c4 {[%emt 0:00:07]} Bg4 {[%emt 0:00:03]} 7. d4 {[%emt 0:03:48]} Bxf3 {[%emt 0:10:42]} 8. Qxf3 {[%emt 0:04:23]} exd4 {[%emt 0:00:20] [#] White is better.} 9. e5 {[%emt 0:05:32] Dodges Nf6} Qd7 $11 {[%emt 0:02:55]} 10. Re1 {[%emt 0:09:33]} O-O-O {[%emt 0:03:19]} 11. exd6 {[%emt 0:05:58]} Bxd6 {[%emt 0:00:52]} 12. Nd2 {[%emt 0:04:31][%cal Ob2b4]} Nf6 {[%emt 0:12:41] Strongly threatening ...Rhe8.} 13. Nb3 {[%emt 0:12:18]} Rhe8 {[%emt 0:03:17]} 14. Bd2 {[%emt 0:02:03]} Rxe1+ $1 {[%emt 0:08:13]} 15. Bxe1 {[%emt 0:02:51]} Qe6 {[%emt 0:01:18]} 16. Bxc6 {[%emt 0:02:22]} bxc6 $40 {[%emt 0:00:02][%mdl 128] White needs to defend precisely.} 17. c5 $1 {[%emt 0:03:12]} Be5 {[%emt 0:02:39]} 18. Qd3 {[%emt 0:05:04]} Rd5 {[%emt 0:02:43][%cal Of6e4]} 19. Bb4 {[%emt 0:09:25]} (19. g3 $11 {keeps the balance.} Ng4 20. h3) 19... Kd7 {[%emt 0:10:21]} (19... Ng4 $1 $17 20. g3 Bf6 21. Qxa6+ Kd7) 20. Re1 {[%emt 0:03:21] Hoping for f4.} (20. h3 {simplifies} Nh5 21. Bd2 Nf4 22. Bxf4 Bxf4 23. Rd1) 20... Qg4 {[%emt 0:01:31]} 21. g3 {[%emt 0:02:02][%cal Ob3a5][%mdl 1024] White has compensation.} Qh3 {[%emt 0:04:30]} 22. Nd2 {[%emt 0:11:02][%cal Od2f3] Black must now prevent Nf3!} (22. Na5 $5 Ng4 $8 23. Qf5+ (23. Qxa6 $2 Qxh2+ 24. Kf1 Qxf2#) 23... Ke8 24. Nxc6 (24. Qc8+ Ke7 $11) 24... Qxh2+ 25. Kf1 Qh3+ (25... Qh1+ $2 26. Ke2 $18) 26. Kg1 Qh2+ 27. Kf1 Qh3+ (27... Qh1+ $2 28. Ke2 $18) 28. Kg1 Qh2+ $11) 22... Ng4 {[%emt 0:03:09]} 23. Nf3 {[%emt 0:00:31] Qf5+ is the strong threat.} Bf6 {[%emt 0:01:42][%cal Og4h2]} 24. Qe2 {[%emt 0:01:02] Black continues to play with concentration.} (24. Qe4 $11 Kc8 25. Ba5) 24... Ne5 $1 $17 {[%emt 0:01:41]} 25. Nd2 {[%emt 0:01:57][%cal Of2f4]} (25. Nxe5+ $2 Rxe5 (25... Bxe5 26. Qe4 $17) 26. Qf3 (26. Qxa6 $2 Rh5 $19) 26... Rxe1+ 27. Bxe1 Qe6 $19) 25... d3 {[%emt 0:01:04] Really sharp! Black is more active.} 26. Qe4 {[%emt 0:01:09] [#]} Kc8 $1 {[%emt 0:00:32]} 27. Bc3 {[%emt 0:00:10] [#] Prevents Rd4} (27. Qg2 $17 {was called for.} Qf5 28. Kh1) 27... Ng4 $1 $19 {[%emt 0:00:27]} (27... Rxc5 28. Qa4 $17) 28. Qg2 {[%emt 0:01:32]} Qxg2+ {[%emt 0:00:07]} 29. Kxg2 {[%emt 0:00:01]} Bxc3 {[%emt 0:00:01]} 30. bxc3 {[%emt 0:00:05]} Rxc5 {[%emt 0:01:22][%mdl 4096] Endgame. KRN-KRN} 31. h3 {[%emt 0:00:18]} Nf6 {[%emt 0:01:57]} 32. c4 {[%emt 0:00:04]} Ra5 {[%emt 0:00:06]} 33. Ra1 {[%emt 0:00:18]} Re5 {[%emt 0:00:22]} 34. Rd1 {[%emt 0:02:16]} Re2 {[%emt 0:00:30]} 35. a3 {[%emt 0:00:31]} c5 {[%emt 0:00:38]} 36. Kf3 {[%emt 0:00:23]} Nd7 {[%emt 0:00:09]} 37. Ne4 {[%emt 0:00:36]} Ne5+ {[%emt 0:00:01]} 38. Kf4 {[%emt 0:00:04]} f6 {[%emt 0:00:23]} (38... Nxc4 39. Rxd3 Rc2 40. h4) 39. f3 {[%emt 0:00:33]} Ra2 {[%emt 0:00:56]} (39... Nxc4 40. Rxd3 Nb6 41. Nc3 $19) 40. Nxc5 {[%emt 0:00:25]} Rxa3 {[%emt 0:00:27]} ({Less strong is} 40... Nxc4 41. Rxd3 a5 (41... Rxa3 42. Rxa3 Nxa3 43. Kf5 $11) (41... Nxa3 42. Re3 $15) 42. Rd7 g5+ (42... Rxa3 43. Rxg7 Kb8 44. Na6+ Kb7 45. Nxc7 $11) 43. Ke4 $17) 41. Ke4 {[%emt 0:00:25]} d2 {[%emt 0:02:13]} ({Much less strong is} 41... Nxc4 42. Nxd3 Nd6+ 43. Kd5 $19) 42. Rxd2 {[%emt 0:00:17]} Rxf3 {[%emt 0:00:03]} 43. Ra2 {[%emt 0:00:51]} Rxg3 {[%emt 0:01:03]} 44. Rxa6 {[%emt 0:00:04]} Kb8 {[%emt 0:00:06] Prevents Ra8+} ({Inferior is} 44... Nxc4 45. Ra8#) 45. Ra4 {[%emt 0:00:24]} (45. Re6 {was necessary.}) 45... Rxh3 {[%emt 0:01:16]} 46. Rb4+ {[%emt 0:00:13]} Kc8 {[%emt 0:00:05]} 47. Ra4 {[%emt 0:00:06][%cal Ra4a8]} Nd7 {[%emt 0:03:23]} 48. Ra8+ {[%emt 0:00:40]} Nb8 {[%emt 0:00:02]} 49. Ne6 {[%emt 0:01:06]} Kb7 {[%emt 0:00:29]} 50. Ra1 {[%emt 0:00:22]} g6 {[%emt 0:00:15]} 51. Nf8 {[%emt 0:01:27]} Rh5 {[%emt 0:00:18]} 52. Rf1 {[%emt 0:00:30]} Re5+ {[%emt 0:00:05]} 53. Kd3 {[%emt 0:00:05]} Re7 {[%emt 0:00:22]} 54. Rh1 {[%emt 0:00:44]} (54. Rxf6 $142 Nd7 55. Rf4) 54... Nd7 {[%emt 0:01:16]} 55. Nxh7 {[%emt 0:00:04]} Kc6 {[%emt 0:00:06]} 56. Kd4 {[%emt 0:00:16]} Kd6 {[%emt 0:00:08]} 57. c5+ {[%emt 0:00:28]} Ke6 {[%emt 0:00:04]} 58. c6 {[%emt 0:00:42]} Ne5 {[%emt 0:00:01]} 59. Kc5 {[%emt 0:00:10]} Rf7 {[%emt 0:01:52]} 60. Rh2 {[%emt 0:01:07]} g5 {[%emt 0:00:11]} 61. Rh6 {[%emt 0:00:34]} Kf5 {[%emt 0:00:09] Threatens to win with ...g4.} 62. Kd5 {[%emt 0:00:32]} Ng4 {[%emt 0:00:02]} 63. Rh1 {[%emt 0:00:18]} Kg6 {[%emt 0:00:09]} 64. Nxg5 {[%emt 0:00:36]} fxg5 {[%emt 0:00:03]} 65. Rg1 {[%emt 0:00:06]} Nf6+ {[%emt 0:00:18]} 66. Ke6 {[%emt 0:00:06]} Rf8 {[%emt 0:00:04] Weighted Error Value: White=0.37/Black=0.10 (very precise) .  Mistake:       	White=6     	Black=1      Inaccurate:     	White=2     	Black=1      OK:         	White=20    	Black=24     Best:        	White=6     	Black=3      Strong:       	White=1     	Black=4} 0-1

[Event "US Masters 2024"]
[Site "Charlotte"]
[Date "2024.11.28"]
[Round "2.15"]
[White "Woodward, Andy"]
[Black "Wang, Isaac"]
[Result "1-0"]
[ECO "D02"]
[WhiteElo "2525"]
[BlackElo "2328"]
[Annotator "TA"]
[PlyCount "81"]
[EventDate "2024.09.23"]
[EventType "swiss"]
[EventCountry "USA"]
[SourceTitle "playchess.com"]
[Source "ChessBase"]
[SourceQuality "1"]
[TimeControl "5400+30"]

{[%evp 11,80,4,0,0,2,-2,-2,8,31,19,18,0,0,0,37,42,32,32,48,27,32,37,25,32,34,25,75,75,89,83,99,72,62,63,101,86,97,0,100,102,102,82,89,83,125,131,139,133,127,61,66,65,59,66,136,109,108,115,200,109,1352,1205,1641,948,1312,1583,1883,1566,2013,1205,5069]} 1. d4 {[%emt 0:02:30]} Nf6 {[%emt 0:00:02]} 2. Nf3 {[%emt 0:00:19]} e6 {[%emt 0:00:11]} 3. Bf4 {[%emt 0:00:17]} d5 {[%emt 0:00:33]} 4. e3 {[%emt 0:00:11]} c5 {[%emt 0:00:10]} 5. Nbd2 {[%emt 0:00:08]} Nc6 {[%emt 0:00:31]} 6. c3 {[%emt 0:02:02]} Nh5 {[%emt 0:00:19]} 7. Bg5 {[%emt 0:03:41]} f6 {[%emt 0:00:09]} 8. Bh4 {[%emt 0:00:20][%cal Of3e5]} g6 {[%emt 0:00:29]} 9. Bd3 {[%emt 0:07:10][%cal Of3e5] The position is equal.} cxd4 {[%emt 0:00:48]} 10. cxd4 {[%emt 0:04:26][%cal Of3e5]} Bd6 {[%emt 0:03:17]} 11. O-O {[%emt 0:05:36]} O-O {[%emt 0:00:43]} 12. a3 {[%emt 0:00:24]} a5 {[%emt 0:02:34]} 13. Nb1 {[%emt 0:03:19][%cal Bd2b1,Bb1c3,Bc3e4][%mdl 32]} Bd7 {[%emt 0:03:55]} 14. Nc3 {[%emt 0:01:50]} Qe8 {[%emt 0:11:40]} 15. Be2 {[%emt 0:10:29]} a4 {[%emt 0:07:56]} 16. e4 {[%emt 0:04:43]} dxe4 {[%emt 0:08:04]} 17. Nxe4 {[%emt 0:00:17]} Be7 {[%emt 0:00:22]} 18. Re1 {[%emt 0:05:28]} Nf4 {[%emt 0:08:03]} (18... Kh8 $11) 19. Bc4 $16 {[%emt 0:03:25]} Qf7 {[%emt 0:06:30]} 20. Bg3 {[%emt 0:00:53]} Nd5 {[%emt 0:00:45]} 21. Bd6 {[%emt 0:00:16]} b6 {[%emt 0:06:02]} 22. Rc1 {[%emt 0:04:39]} Rfe8 {[%emt 0:04:02]} 23. Bb5 {[%emt 0:04:15]} Nb8 {[%emt 0:01:47]} 24. Bc4 {[%emt 0:05:22] White has more active pieces.} Nc6 {[%emt 0:05:07]} 25. Bxe7 {[%emt 0:06:05]} Qxe7 {[%emt 0:08:35] [#]} 26. Nc5 $1 {[%emt 0:04:29][%mdl 512]} bxc5 {[%emt 0:03:41]} 27. Bxd5 {[%emt 0:00:02]} Rab8 {[%emt 0:03:30]} 28. dxc5 {[%emt 0:00:54]} ({Don't do} 28. Rxc5 Qd6 29. Be4 Rxb2 $11) 28... Rxb2 {[%emt 0:01:06]} 29. Qxa4 {[%emt 0:02:53]} Rc8 {[%emt 0:06:20]} 30. Qe4 {[%emt 0:02:06]} ({White should try} 30. h3 $16) 30... exd5 $14 {[%emt 0:04:27]} 31. Qxe7 {[%emt 0:00:03]} Nxe7 {[%emt 0:00:05]} 32. Rxe7 {[%emt 0:00:09]} Bg4 {[%emt 0:00:15]} (32... Ba4 $14) 33. h3 {[%emt 0:00:45]} ({But not} 33. Nd4 $6 Rxc5 34. Rce1 Rc4 $11) 33... Bxf3 {[%emt 0:00:26]} 34. gxf3 $16 {[%emt 0:00:02][%mdl 4096] [#] Endgame. Threatens to win with c6. KRR-KRR} Rb3 {[%emt 0:01:13]} (34... d4 $16 {might work better.}) 35. Rd7 {[%emt 0:00:34]} (35. c6 $18 d4 36. Rc4 Rxa3 37. Rxd4) 35... Rxf3 $2 {[%emt 0:00:51][%mdl 8192] Black cannot hold the game after this.} (35... d4 $16) 36. c6 $18 {[%emt 0:00:11][%cal Bc5c6,Bc6c7][%mdl 32] White is clearly winning.} (36. Rxd5 Rxa3 37. c6 Ra7 $11) 36... Rxa3 {[%emt 0:00:34]} 37. c7 {[%emt 0:00:10] Strongly threatening Rd8+.} (37. Rxd5 Ra7 $11) 37... Raa8 {[%emt 0:00:13]} 38. Rd1 {[%emt 0:00:08]} ({Less strong is} 38. Rxd5 Kf7 $18) 38... Re8 {[%emt 0:01:06]} 39. R1xd5 {[%emt 0:00:08] Hoping for Rd8.} Rac8 {[%emt 0:00:47]} 40. R5d6 {[%emt 0:00:07]} Rf8 {[%emt 0:00:49]} 41. Re7 {[%emt 0:00:21] Weighted Error Value: White=0.18 (very precise) /Black=0.15 (very precise) .  Loses game:     	---       	Black=1      Mistake:       	White=2     	Black=3      Inaccurate:     	---       	Black=4      OK:         	White=14    	Black=11     Best:        	White=2     	Black=4} 1-0